lending/lending_fUSD_20240509
["ID","MTS","AMOUNT","RATE_DAILY","PERIOD"]
[326672380,1715213434486,-155.0,0.00010687,2]
[326672381,1715213434496,-122.94262863,0.00010688,2]
[326672382,1715213434509,-32.05737137,0.00010688,2]
[326672383,1715213434518,-421.45262863,0.00010786,2]
[326672384,1715213434531,-406.13838012,0.00010786,2]
[326672385,1715213434542,-414.95236416,0.00010786,2]
[326672386,1715213434553,-500.0,0.00010786,2]
[326672387,1715213434565,-582.99644899,0.00010786,2]
[326672388,1715213434574,-6628.00355101,0.00010787,2]
[326672390,1715213439958,-3057.04594187,0.00010785,2]
[326672393,1715213439968,-16176.75074039,0.00010787,2]
[326672395,1715213439978,-156.95680701,0.00010796,2]
[326672397,1715213439987,-257.41029778,0.000109,2]
[326672399,1715213439996,-828.71125056,0.00010923,2]
[326672401,1715213440006,-1000.0,0.00012799,2]
[326672402,1715213440016,-16366.3495,0.000128,2]
[326672403,1715213440026,-150.99,0.00012897,2]
[326672404,1715213440036,-188.70189088,0.00013,2]
[326672405,1715213440046,-4213.84844279,0.00015,2]
[326672406,1715213440055,-156.956807,0.00015751,2]
[326672407,1715213440065,-1225.84618609,0.000165,2]
[326672408,1715213440074,-301.98,0.000165,2]
[326672409,1715213440085,-702.49396764,0.00017259,2]
[326672410,1715213440094,-500.0,0.00017663,2]
[326672411,1715213440104,-250.0,0.00017833,2]
[326672412,1715213440114,-200.0,0.00017849,2]
[326672413,1715213440124,-400.52,0.00017874,2]
[326672414,1715213440134,-178.87,0.00018017,2]
[326672415,1715213440143,-183.56,0.00018259,2]
[326672416,1715213440153,-795.99,0.00018295,2]
[326672417,1715213440162,-23900.0,0.00018359,2]
[326672418,1715213440171,-1000.0,0.00018524,2]
[326672419,1715213440181,-6567.4077,0.00018858,2]
[326672420,1715213440191,-847.0471,0.00018858,2]
[326672421,1715213440203,-256.5545,0.00018858,2]
[326672422,1715213440213,-423.30130281,0.00018869,2]
[326672423,1715213440223,-2702.295,0.00018869,2]
[326672424,1715213440232,-7238.35,0.00018958,2]
[326672425,1715213440242,-5000.0,0.00019,2]
[326672426,1715213440251,-155.0,0.00019,2]
[326672427,1715213440260,-167.0,0.00019007,2]
[326672428,1715213440270,-3466.0,0.000191,2]
[326672429,1715213440279,-841.0,0.000191,2]
[326672430,1715213440291,-153.22,0.00019178,2]
[326672431,1715213440301,-179.62,0.00019178,2]
[326672432,1715213440311,-3876.54489169,0.000192,2]
[326672433,1715213440320,-7475.46,0.00019687,2]
[326672434,1715213440329,-155.0,0.0002,2]
[326672435,1715213440339,-155.0,0.0002,2]
[326672436,1715213440348,-5179.40318608,0.0002,2]
[326672437,1715213440358,-6231.35798858,0.0002,2]
[326672438,1715213440368,-155.0,0.0002,2]
[326672439,1715213440378,-2079.19291416,0.0002,2]
[326672440,1715213440387,-152.38976359,0.00020148,2]
[326672441,1715213440397,-2602.28168975,0.00020546,2]
[326672442,1715213440406,-2885.5228,0.00020565,2]
[326672443,1715213440416,-10349.8897,0.00020565,2]
[326672444,1715213440425,-2500.0,0.00020565,2]
[326672445,1715213440435,-12487.6576,0.00020565,2]
[326672446,1715213440444,-1561.86172371,0.00020664,2]
[326672447,1715213440454,-5805.9274,0.00020665,2]
[326672448,1715213440463,-11308.74248664,0.00020686,2]
[326672449,1715213440473,-3500.94133622,0.00020687,2]
[326672450,1715213440482,-156.956807,0.00020705,2]
[326672451,1715213440492,-152.67934872,0.00020732,2]
[326672452,1715213440502,-800.0,0.0002074,2]
[326672453,1715213440512,-800.0,0.0002074,2]
[326672454,1715213440522,-166.15,0.00020755,2]
[326672455,1715213440531,-5707.9215,0.00020765,2]
[326672456,1715213440540,-245000.0,0.00020765,2]
[326672457,1715213440550,-168.56150952,0.00020786,2]
[326672458,1715213440559,-1000.0,0.0002084,2]
[326672459,1715213440568,-320.85663146,0.00020865,2]
[326672460,1715213440578,-155.14744708,0.00020918,2]
[326672461,1715213440587,-150.29650162,0.00020944,2]
[326672462,1715213440597,-152.67934872,0.00020958,2]
[326672463,1715213440609,-366.31861737,0.00020965,2]
[326672464,1715213440619,-1037.87625114,0.00020965,2]
[326672465,1715213440628,-1042.23614951,0.00020965,2]
[326672466,1715213440639,-37432.17503197,0.00020965,2]
[326672467,1715213440649,-293.68275383,0.00020965,2]
[326672468,1715213440658,-256.17387339,0.00020965,2]
[326672469,1715213440668,-2000.0,0.00020965,2]
[326672470,1715213440677,-200.0,0.00020965,2]
[326672471,1715213440687,-3000.0,0.00020965,2]
[326672472,1715213440697,-716.46076482,0.00021,2]
[326672473,1715213440708,-291.84415768,0.00021,2]
[326672474,1715213440718,-152.38976359,0.00021088,2]
[326672475,1715213440730,-381.993559,0.00021096,2]
[326672477,1715213440741,-153.21847455,0.00021182,2]
[326672479,1715213440755,-168.56150952,0.00021248,2]
[326672481,1715213440766,-494.0898,0.00021389,2]
[326672482,1715213440777,-7400.8114,0.0002139,2]
[326672483,1715213440787,-1000.0,0.00021467,2]
[326672484,1715213440798,-188.03404075,0.0002148,2]
[326672485,1715213440808,-12177.05893518,0.00021487,2]
[326672486,1715213440818,-201.00682323,0.00021488,2]
[326672487,1715213440829,-468.40106323,0.00021488,2]
[326672488,1715213440839,-16788.97290704,0.00021489,2]
[326672489,1715213440849,-98242.99767403,0.0002149,2]
[326672490,1715213440861,-152.67934872,0.00021546,2]
[326672491,1715213440871,-152.19,0.00021589,15]
[326672492,1715213440881,-154.04170922,0.00021624,2]
[326672493,1715213440891,-337.93585131,0.00021633,2]
[326672494,1715213440900,-337.93585131,0.00021646,2]
[326672495,1715213440910,-157.85113268,0.00021647,2]
[326672496,1715213440920,-168.56150952,0.0002167,2]
[326672497,1715213440929,-640.03882264,0.00021717,2]
[326672498,1715213440939,-168.56150952,0.00021779,2]
[326672499,1715213440948,-640.03882262,0.00021802,2]
[326672500,1715213440958,-100000.0,0.00021817,2]
[326672501,1715213440969,-500.0,0.00021817,2]
[326672502,1715213440982,-214.0,0.0002188,2]
[326672503,1715213440991,-192.31478473,0.00021887,2]
[326672504,1715213441001,-640.03882262,0.00021887,2]
[326672505,1715213441010,-6762.66945982,0.000219,2]
[326672506,1715213441020,-200.17759343,0.000219,2]
[326672507,1715213441029,-177.10224628,0.000219,2]
[326672508,1715213441039,-4800.87630736,0.000219,2]
[326672509,1715213441048,-186.15704986,0.000219,2]
[326672510,1715213441057,-1000.0,0.00021918,2]
[326672511,1715213441067,-1000.0,0.00021918,2]
[326672512,1715213441076,-1000.0,0.00021918,2]
[326672513,1715213441086,-1000.0,0.00021918,2]
[326672514,1715213441095,-1000.0,0.00021918,2]
[326672515,1715213441105,-1000.0,0.00021918,2]
[326672516,1715213441115,-1000.0,0.00021918,2]
[326672517,1715213441126,-1000.0,0.00021918,2]
[326672518,1715213441135,-1000.0,0.00021918,2]
[326672519,1715213441144,-1000.0,0.00021918,2]
[326672520,1715213441154,-1000.0,0.00021918,2]
[326672521,1715213441163,-1030.0,0.00021918,2]
[326672522,1715213441172,-250.0,0.00021918,2]
[326672523,1715213441181,-2000.0,0.00021918,2]
[326672524,1715213441190,-289.32,0.00021918,2]
[326672525,1715213441199,-381.993559,0.00021918,2]
[326672526,1715213441209,-168.56150952,0.00021962,2]
[326672527,1715213441218,-251.780289,0.0002197,7]
[326672528,1715213441228,-200.0,0.0002197,7]
[326672529,1715213441238,-200.0,0.0002197,7]
[326672530,1715213441248,-200.0,0.0002197,7]
[326672531,1715213441257,-200.0,0.0002197,7]
[326672532,1715213441266,-200.0,0.0002197,7]
[326672533,1715213441276,-200.0,0.0002197,7]
[326672534,1715213441285,-200.0,0.0002197,7]
[326672535,1715213441294,-200.0,0.0002197,7]
[326672536,1715213441303,-200.0,0.0002197,7]
[326672537,1715213441312,-200.0,0.0002197,7]
[326672538,1715213441322,-200.0,0.0002197,7]
[326672539,1715213441333,-200.0,0.0002197,7]
[326672540,1715213441343,-4982.39293457,0.0002198,2]
[326672541,1715213441358,-72232.05546297,0.0002198,2]
[326672542,1715213441374,-627.28584509,0.0002198,2]
[326672543,1715213441387,-311.75649,0.0002198,2]
[326672544,1715213441398,-3370.01740563,0.0002198,2]
[326672545,1715213441410,-305.51900065,0.0002198,2]
[326672557,1715213445629,-8978.11,0.00021917,2]
[326672559,1715213445638,-4166.15368001,0.00021917,2]
[326672560,1715213445650,-4811.95631999,0.00021917,2]
[326672561,1715213445659,-8978.11,0.00021917,2]
[326672562,1715213445669,-8978.11,0.00021979,2]
[326672563,1715213445678,-8978.11,0.00021979,2]
[326672564,1715213445688,-495687.50178774,0.0002198,2]
[326672565,1715213445697,-277.86804255,0.00022,2]
[326672566,1715213445706,-786.26824534,0.00022,2]
[326672567,1715213445716,-1778.1521,0.00022,2]
[326672568,1715213445725,-546.4241888,0.00022,2]
[326672569,1715213445735,-4212.55427389,0.00022,2]
[326672570,1715213445745,-4212.55427389,0.00022,2]
[326672571,1715213445756,-4212.55427389,0.00022,2]
[326672572,1715213445766,-4212.55427389,0.00022,2]
[326672573,1715213445775,-4212.55427389,0.00022,2]
[326672575,1715213445784,-4212.55427389,0.00022,2]
[326672576,1715213445793,-4212.55427389,0.00022,2]
[326672577,1715213445802,-4212.55427389,0.00022,2]
[326672578,1715213445811,-4212.55427389,0.00022,2]
[326672579,1715213445820,-4212.55427389,0.00022,2]
[326672580,1715213445831,-4212.55427389,0.00022,2]
[326672581,1715213445841,-4212.55427389,0.00022,2]
[326672582,1715213445849,-4212.55427389,0.00022,2]
[326672583,1715213445858,-4212.55427389,0.00022,2]
[326672584,1715213445867,-4212.55427389,0.00022,2]
[326672585,1715213445877,-4212.55427389,0.00022,2]
[326672586,1715213445886,-4212.55427389,0.00022,2]
[326672587,1715213445894,-4212.55427389,0.00022,2]
[326672588,1715213445903,-4212.55427389,0.00022,2]
[326672589,1715213445913,-4212.55427389,0.00022,2]
[326672590,1715213445922,-4212.55427389,0.00022,2]
[326672592,1715213445931,-4212.55427389,0.00022,2]
[326672593,1715213445940,-4212.55427389,0.00022,2]
[326672594,1715213445949,-4212.55427389,0.00022,2]
[326672595,1715213445958,-4212.55427389,0.00022,2]
[326672596,1715213445966,-4212.55427389,0.00022,2]
[326672597,1715213445976,-4212.55427389,0.00022,2]
[326672598,1715213445987,-4212.55427389,0.00022,2]
[326672599,1715213445996,-4212.55427389,0.00022,2]
[326672600,1715213446006,-4212.55427389,0.00022,2]
[326672601,1715213446015,-4212.55427389,0.00022,2]
[326672602,1715213446024,-4212.55427389,0.00022,2]
[326672603,1715213446033,-4212.55427389,0.00022,2]
[326672604,1715213446043,-192.3147839,0.00022146,2]
[326672605,1715213446052,-337.93585131,0.00022346,2]
[326672606,1715213446061,-152.67934872,0.00022354,2]
[326672607,1715213446071,-157.85113268,0.0002237,2]
[326672608,1715213446080,-192.3147839,0.00022404,2]
[326672609,1715213446089,-151.57194683,0.00022487,2]
[326672610,1715213446104,-168.56150952,0.00022528,2]
[326672611,1715213446116,-11308.74248664,0.00022532,2]
[326672612,1715213446127,-155.14744708,0.00022593,2]
[326672613,1715213446137,-2544.85572424,0.00022602,2]
[326672614,1715213446147,-154.55367259,0.00022616,2]
[326672615,1715213446157,-192.3147839,0.00022663,2]
[326672616,1715213446167,-381.993559,0.0002274,2]
[326672617,1715213446176,-183.56,0.00022824,2]
[326672618,1715213446186,-168.56150952,0.00022842,2]
[326672619,1715213446196,-192.3147839,0.00022921,2]
[326672620,1715213446205,-152.67934872,0.00023112,2]
[326672621,1715213446215,-1000.0,0.00023156,2]
[326672622,1715213446225,-192.3147839,0.0002318,2]
[326672623,1715213446235,-917.15678876,0.000232,2]
[326672624,1715213446244,-154.55367259,0.00023254,2]
[326672625,1715213446254,-10000.0,0.00023257,2]
[326672626,1715213446264,-154.04170922,0.00023351,2]
[326672627,1715213446274,-1551.35,0.00023368,2]
[326672628,1715213446284,-6637.55,0.00023368,2]
[326672629,1715213446294,-13261.21,0.00023368,2]
[326672630,1715213446304,-2002.05142652,0.000234,2]
[326672631,1715213446314,-192.3147839,0.00023438,2]
[326672632,1715213446324,-1198.94252494,0.00023457,2]
[326672633,1715213446334,-381.993559,0.00023562,2]
[326672634,1715213446344,-4800.87630736,0.00023673,2]
[326672635,1715213446357,-168.56150952,0.0002368,2]
[326672636,1715213446368,-192.3147839,0.00023697,2]
[326672637,1715213446378,-157.85113268,0.0002383,2]
[326672638,1715213446388,-5358.0,0.0002389,4]
[326672639,1715213446398,-192.75161934,0.000239,2]
[326672640,1715213446408,-200.88129127,0.000239,2]
[326672641,1715213446417,-526.95622808,0.000239,2]
[326672642,1715213446427,-192.3147839,0.00023956,2]
[326672643,1715213446437,-259994.28501402,0.00024,7]
[326672644,1715213446446,-432.28243981,0.00024,2]
[326672645,1715213446457,-19609.38018864,0.00024,2]
[326672646,1715213446466,-1072.44064238,0.00024,2]
[326672647,1715213446476,-491853.24978942,0.00024,15]
[326672648,1715213446486,-523.24,0.00024,2]
[326672649,1715213446495,-3517.85702846,0.00024,2]
[326672650,1715213446505,-3517.85702846,0.00024,2]
[326672651,1715213446514,-3517.85702846,0.00024,2]
[326672652,1715213446524,-3517.85702846,0.00024,2]
[326672653,1715213446533,-3517.85702846,0.00024,2]
[326672654,1715213446543,-3517.85702846,0.00024,2]
[326672655,1715213446552,-3517.85702846,0.00024,2]
[326672656,1715213446562,-3517.85702846,0.00024,2]
[326672657,1715213446572,-3517.85702846,0.00024,2]
[326672658,1715213446581,-3517.85702846,0.00024,2]
[326672659,1715213446591,-151.57194683,0.00024001,2]
[326672660,1715213446600,-1034.47722721,0.000241,2]
[326672661,1715213446612,-345.4748,0.00024109,2]
[326672662,1715213446623,-152.67934872,0.00024161,2]
[326672663,1715213446633,-1005.9470988,0.0002418,2]
[326672664,1715213446642,-394.17085739,0.0002421,2]
[326672665,1715213446651,-192.3147839,0.00024214,2]
[326672666,1715213446661,-180.0,0.0002423,2]
[326672667,1715213446670,-168.56150952,0.0002424,2]
[326672668,1715213446679,-166.32939386,0.00024246,2]
[326672669,1715213446688,-154.999999,0.0002425,2]
[326672670,1715213446697,-171.0584491,0.00024284,2]
[326672671,1715213446706,-151.57194683,0.00024292,2]
[326672672,1715213446716,-11308.74248664,0.00024378,2]
[326672673,1715213446725,-381.993559,0.00024384,2]
[326672674,1715213446734,-16226.32923943,0.00024384,2]
[326672675,1715213446754,-152.67934872,0.00024445,2]
[326672676,1715213446765,-192.3147839,0.00024473,2]
[326672677,1715213446775,-2301.0,0.00024484,2]
[326672678,1715213446784,-1013.42,0.00024484,2]
[326672679,1715213446794,-1407.335,0.00024484,2]
[326672680,1715213446804,-1788.0,0.00024484,2]
[326672681,1715213446813,-543.734,0.00024484,2]
[326672682,1715213446822,-1260.0,0.00024484,2]
[326672683,1715213446834,-1226.0,0.00024484,2]
[326672684,1715213446844,-164.0,0.00024484,2]
[326672685,1715213446853,-809.0,0.00024484,2]
[326672686,1715213446862,-421.0,0.00024484,2]
[326672687,1715213446871,-438.0,0.00024484,2]
[326672688,1715213446880,-611.0,0.00024484,2]
[326672689,1715213446890,-150.0,0.00024484,2]
[326672690,1715213446899,-150.0,0.00024484,2]
[326672691,1715213446909,-2431.0,0.00024484,2]
[326672692,1715213446920,-1478.0,0.00024484,2]
[326672693,1715213446930,-1645.0,0.00024484,2]
[326672694,1715213446939,-444.0,0.00024484,2]
[326672695,1715213446948,-1138.0,0.00024484,2]
[326672696,1715213446957,-215.0,0.00024484,2]
[326672697,1715213446966,-3154.0,0.00024484,2]
[326672698,1715213446975,-5907.0,0.00024484,2]
[326672699,1715213446985,-5745.0,0.00024484,2]
[326672700,1715213446995,-2295.0,0.00024484,2]
[326672701,1715213447004,-37800.0,0.00024484,2]
[326672702,1715213447014,-1058.0,0.00024484,2]
[326672703,1715213447023,-168.56150952,0.00024547,2]
[326672704,1715213447033,-337.93585131,0.00024626,2]
[326672705,1715213447042,-289.32,0.00024658,2]
[326672706,1715213447051,-192.3147839,0.00024731,2]
[326672707,1715213447060,-152.52717642,0.00024736,2]
[326672708,1715213447070,-152.67934872,0.00024745,2]
[326672709,1715213447079,-157.050909,0.00024748,4]
[326672710,1715213447088,-152.67934872,0.0002476,2]
[326672711,1715213447098,-154.55367259,0.00024762,2]
[326672712,1715213447109,-408.64578529,0.0002477,2]
[326672713,1715213447118,-155.0,0.00024772,2]
[326672714,1715213447128,-192.3147839,0.0002499,2]
[326672715,1715213447137,-4720.79176402,0.0002499,2]
[326672716,1715213447148,-155.0,0.00025,2]
[326672717,1715213447158,-32947.39785472,0.00025,4]
[326672718,1715213447167,-565.81211069,0.00025,2]
[326672719,1715213447176,-367.27537986,0.00025,7]
[326672720,1715213447186,-163.15091824,0.00025,2]
[326672721,1715213447195,-12636.75901314,0.00025,2]
[326672722,1715213447204,-1237.86298242,0.00025,2]
[326672723,1715213447214,-186.05517551,0.00025,60]
[326672724,1715213447223,-928.11538721,0.00025,2]
[326672725,1715213447233,-12505.53780629,0.00025,2]
[326672726,1715213447242,-168.56150952,0.00025043,2]
[326672727,1715213447251,-4513.758126,0.0002509,2]
[326672728,1715213447260,-157.050908,0.00025148,6]
[326672729,1715213447270,-523.24,0.000252,2]
[326672730,1715213447279,-381.993559,0.00025205,2]
[326672731,1715213447289,-189.398626,0.00025232,2]
[326672732,1715213447299,-194.331886,0.00025232,2]
[326672733,1715213447309,-215.883904,0.00025232,2]
[326672734,1715213447318,-182.228144,0.00025232,2]
[326672735,1715213447327,-399.331158,0.00025232,2]
[326672736,1715213447337,-172.70712,0.00025232,2]
[326672737,1715213447347,-2204.239386,0.00025232,2]
[326672738,1715213447358,-306.837484,0.00025232,2]
[326672739,1715213447367,-172.707121,0.00025232,2]
[326672740,1715213447375,-399.331159,0.00025232,2]
[326672741,1715213447384,-158.235529,0.00025232,2]
[326672742,1715213447394,-152.545222,0.00025232,2]
[326672743,1715213447403,-253.176846,0.00025232,2]
[326672744,1715213447412,-152.545223,0.00025232,2]
[326672745,1715213447594,-192.3147839,0.00025248,2]
[326672746,1715213447604,-253.81,0.00025379,2]
[326672747,1715213447615,-4800.87630736,0.00025445,2]
[326672748,1715213447624,-157.050908,0.00025448,6]
[326672749,1715213447634,-1000.0,0.00025471,2]
[326672750,1715213447643,-152.52717642,0.00025491,2]
[326672751,1715213447652,-152.67934872,0.00025492,2]
[326672752,1715213447662,-192.3147839,0.00025507,2]
[326672753,1715213447671,-399.331158,0.00025548,2]
[326672754,1715213447680,-2204.239386,0.00025548,2]
[326672755,1715213447690,-306.837484,0.00025548,2]
[326672756,1715213447700,-399.331159,0.00025548,2]
[326672757,1715213447709,-253.176846,0.00025548,2]
[326672758,1715213447718,-150.0,0.000256,4]
[326672759,1715213447727,-154.55367259,0.00025717,2]
[326672760,1715213447737,-157.050908,0.00025748,6]
[326672761,1715213447749,-192.3147839,0.00025766,2]
[326672762,1715213447758,-153.67696771,0.00025775,2]
[326672763,1715213447768,-399.331158,0.00025863,2]
[326672764,1715213447777,-2204.239386,0.00025863,2]
[326672765,1715213447786,-306.837484,0.00025863,2]
[326672766,1715213447797,-399.331159,0.00025863,2]
[326672767,1715213447806,-158.235529,0.00025863,2]
[326672768,1715213447815,-152.545222,0.00025863,2]
[326672769,1715213447825,-253.176846,0.00025863,2]
[326672770,1715213447837,-152.545223,0.00025863,2]
[326672771,1715213447847,-153.21847455,0.00025867,2]
[326672772,1715213447857,-158.11,0.0002589,2]
[326672773,1715213447866,-3000.0,0.00025965,2]
[326672774,1715213447876,-1942.08921318,0.00026,2]
[326672775,1715213447885,-500.0,0.00026022,2]
[326672776,1715213447894,-500.0,0.00026022,2]
[326672777,1715213447903,-500.0,0.00026022,2]
[326672778,1715213447912,-500.0,0.00026022,2]
[326672779,1715213447922,-500.0,0.00026022,2]
[326672780,1715213447931,-500.0,0.00026022,2]
[326672781,1715213447940,-500.0,0.00026022,2]
[326672782,1715213447949,-500.0,0.00026022,2]
[326672783,1715213447959,-500.0,0.00026022,2]
[326672784,1715213447969,-500.0,0.00026022,2]
[326672785,1715213447978,-500.0,0.00026022,2]
[326672786,1715213447988,-500.0,0.00026022,2]
[326672787,1715213447997,-500.0,0.00026022,2]
[326672788,1715213448006,-500.0,0.00026022,2]
[326672789,1715213448015,-500.0,0.00026022,2]
[326672790,1715213448024,-500.0,0.00026022,2]
[326672791,1715213448034,-500.0,0.00026022,2]
[326672792,1715213448043,-500.0,0.00026022,2]
[326672793,1715213448052,-500.0,0.00026022,2]
[326672794,1715213448061,-500.0,0.00026022,2]
[326672795,1715213448071,-500.0,0.00026022,2]
[326672796,1715213448080,-500.0,0.00026022,2]
[326672797,1715213448089,-538.80347006,0.00026022,2]
[326672798,1715213448099,-500.0,0.00026022,2]
[326672799,1715213448122,-500.0,0.00026022,2]
[326672800,1715213448132,-500.0,0.00026022,2]
[326672801,1715213448141,-500.0,0.00026022,2]
[326672802,1715213448150,-500.0,0.00026022,2]
[326672803,1715213448159,-500.0,0.00026022,2]
[326672804,1715213448169,-500.0,0.00026022,2]
[326672805,1715213448178,-500.0,0.00026022,2]
[326672806,1715213448187,-500.0,0.00026022,2]
[326672807,1715213448197,-500.0,0.00026022,2]
[326672808,1715213448206,-500.0,0.00026022,2]
[326672809,1715213448215,-500.0,0.00026022,2]
[326672810,1715213448225,-500.0,0.00026022,2]
[326672811,1715213448235,-500.0,0.00026022,2]
[326672812,1715213448244,-500.0,0.00026022,2]
[326672813,1715213448253,-500.0,0.00026022,2]
[326672814,1715213448263,-500.0,0.00026022,2]
[326672815,1715213448272,-192.3147839,0.00026024,2]
[326672816,1715213448282,-381.993559,0.00026027,2]
[326672817,1715213448292,-152.58134113,0.00026035,2]
[326672818,1715213448301,-151.57194683,0.00026085,2]
[326672819,1715213448310,-640.64,0.000261,2]
[326672820,1715213448319,-758.55,0.000261,2]
[326672821,1715213448328,-150.0,0.000261,4]
[326672822,1715213448337,-152.52717642,0.00026119,2]
[326672823,1715213448346,-157.050908,0.00026148,14]
[326672824,1715213448355,-151.57194683,0.00026174,2]
[326672825,1715213448365,-399.331158,0.00026178,2]
[326672826,1715213448374,-2204.239386,0.00026178,2]
[326672827,1715213448383,-306.837484,0.00026178,2]
[326672828,1715213448392,-399.331159,0.00026178,2]
[326672829,1715213448401,-253.176846,0.00026178,2]
[326672830,1715213448410,-11308.74248664,0.00026224,2]
[326672831,1715213448419,-192.3147839,0.00026283,2]
[326672832,1715213448428,-152.52717642,0.00026323,2]
[326672833,1715213448437,-337.93585131,0.00026424,2]
[326672834,1715213448446,-337.93585131,0.00026429,2]
[326672835,1715213448455,-157.050908,0.00026448,14]
[326672836,1715213448464,-152.38976359,0.00026468,2]
[326672837,1715213448473,-399.331158,0.00026494,2]
[326672838,1715213448486,-2204.239386,0.00026494,2]
[326672839,1715213448496,-306.837484,0.00026494,2]
[326672840,1715213448505,-399.331159,0.00026494,2]
[326672841,1715213448515,-158.235529,0.00026494,2]
[326672842,1715213448525,-152.545222,0.00026494,2]
[326672843,1715213448534,-253.176846,0.00026494,2]
[326672844,1715213448544,-152.545223,0.00026494,2]
[326672845,1715213448553,-172.70712,0.00026494,2]
[326672846,1715213448562,-172.707121,0.00026494,2]
[326672847,1715213448571,-166.03085822,0.00026495,2]
[326672848,1715213448581,-152.52717642,0.00026522,2]
[326672849,1715213448590,-192.3147839,0.00026541,2]
[326672850,1715213448600,-337.93585131,0.00026562,2]
[326672851,1715213448610,-523.24,0.000266,2]
[326672852,1715213448619,-150.0,0.000266,5]
[326672853,1715213448628,-154.55367259,0.00026712,2]
[326672854,1715213448638,-157.050908,0.00026748,14]
[326672855,1715213448647,-192.3147839,0.000268,2]
[326672856,1715213448657,-152.52717642,0.00026844,2]
[326672857,1715213448666,-381.993559,0.00026849,2]
[326672858,1715213448677,-154.55367259,0.00026953,2]
[326672859,1715213448687,-1741.42627628,0.00027,2]
[326672860,1715213448696,-150.0,0.00027,2]
[326672861,1715213448708,-178.87,0.00027026,120]
[326672862,1715213448717,-154.55367259,0.00027055,2]
[326672863,1715213448727,-192.3147839,0.00027058,2]
[326672864,1715213448737,-640.64,0.000271,2]
[326672865,1715213448750,-758.55,0.000271,2]
[326672866,1715213448759,-150.0,0.000271,5]
[326672867,1715213448769,-157.050908,0.00027148,18]
[326672868,1715213448779,-166.66666666,0.00027149,2]
[326672869,1715213448789,-166.66666666,0.00027181,2]
[326672870,1715213448798,-2100.0,0.00027201,2]
[326672871,1715213448808,-4800.87630736,0.00027218,2]
[326672872,1715213448817,-168.56150952,0.00027265,2]
[326672873,1715213448829,-192.3147839,0.00027317,2]
[326672874,1715213448839,-183.56,0.00027388,120]
[326672875,1715213448848,-206.88313584,0.00027396,2]
[326672876,1715213448858,-306.31282982,0.00027396,2]
[326672877,1715213448868,-500.0,0.00027397,2]
[326672878,1715213448877,-500.0,0.00027397,2]
[326672879,1715213448886,-500.0,0.00027397,2]
[326672880,1715213448894,-500.0,0.00027397,2]
[326672881,1715213448904,-500.0,0.00027397,2]
[326672882,1715213448913,-500.0,0.00027397,2]
[326672883,1715213448924,-500.0,0.00027397,2]
[326672884,1715213448934,-500.0,0.00027397,2]
[326672885,1715213448943,-500.0,0.00027397,2]
[326672886,1715213448952,-500.0,0.00027397,2]
[326672887,1715213448962,-500.0,0.00027397,2]
[326672888,1715213448971,-500.0,0.00027397,2]
[326672889,1715213448980,-500.0,0.00027397,2]
[326672890,1715213448989,-500.0,0.00027397,2]
[326672891,1715213448998,-500.0,0.00027397,2]
[326672892,1715213449023,-500.0,0.00027397,2]
[326672893,1715213449033,-500.0,0.00027397,2]
[326672894,1715213449043,-500.0,0.00027397,2]
[326672895,1715213449053,-500.0,0.00027397,2]
[326672896,1715213449062,-500.0,0.00027397,2]
[326672897,1715213449071,-500.0,0.00027397,2]
[326672898,1715213449081,-500.0,0.00027397,2]
[326672899,1715213449091,-500.0,0.00027397,2]
[326672900,1715213449100,-500.0,0.00027397,2]
[326672901,1715213449109,-500.0,0.00027397,2]
[326672902,1715213449119,-500.0,0.00027397,2]
[326672903,1715213449131,-552.31,0.00027397,2]